bitfinex-derivatives/quotes_BTCF0:USTF0_20251023
["timestamp","ask_amount","ask_price","bid_price","bid_amount"]
[1761260957751,0.05604,109900.0,109890.0,0.87875119]
[1761260959244,0.05604,109900.0,109890.0,0.8133533]
[1761260960249,0.05604,109900.0,109890.0,0.8263733]
[1761260967361,0.05604,109900.0,109890.0,0.4655733]
[1761260967656,0.30604,109900.0,109890.0,0.8263733]
[1761260967853,0.45034007,109900.0,109890.0,0.8263733]
[1761260968651,0.20034007,109900.0,109890.0,0.8263733]
[1761260968857,0.49263506,109900.0,109890.0,0.8263733]
[1761260969058,0.34833499,109900.0,109890.0,0.8263733]
[1761260969761,0.07833499,109900.0,109890.0,0.8263733]
[1761260970058,0.34335,109900.0,109890.0,0.8263733]
[1761260970260,0.36564499,109900.0,109890.0,0.8263733]
[1761260972457,0.06564499,109900.0,109890.0,0.8263733]
[1761260972760,0.04335,109900.0,109890.0,0.8263733]
[1761260984071,0.04335,109900.0,109890.0,0.89177119]
[1761260985177,0.04335,109900.0,109890.0,0.53097119]
[1761260985364,0.04335,109900.0,109890.0,0.89177119]
[1761260986077,0.04335,109900.0,109890.0,0.8263733]
[1761260988781,0.18762749,109900.0,109890.0,0.97065079]
[1761260988982,0.20992248,109900.0,109890.0,0.97065079]
[1761260992586,0.18762749,109900.0,109890.0,0.97065079]
[1761260993488,0.20998698,109900.0,109890.0,0.97065079]
[1761260993689,0.16552749,109900.0,109890.0,0.97065079]
[1761260993990,0.14427749,109900.0,109890.0,0.97065079]
[1761260994179,0.40536,109910.0,109900.0,0.148685]
[1761260994371,0.86963749,109910.0,109900.0,0.148685]
[1761260994988,0.60963749,109910.0,109900.0,0.148685]
[1761260995286,0.63199699,109910.0,109900.0,0.148685]
[1761260995588,0.61063749,109910.0,109900.0,0.148685]
[1761260996391,0.65756442,109910.0,109900.0,0.148685]
[1761260997089,0.24918701,109910.0,109900.0,0.29296249]
[1761260997587,0.10490952,109910.0,109900.0,0.29296249]
[1761260997786,0.24983749,109910.0,109900.0,0.29296249]
[1761260997989,0.27219701,109910.0,109900.0,0.29296249]
[1761261001090,0.54219701,109910.0,109900.0,0.29296249]
[1761261001292,0.25219701,109910.0,109900.0,0.29296249]
[1761261001589,0.54219701,109910.0,109900.0,0.29296249]
[1761261001793,0.24219701,109910.0,109900.0,0.148685]
[1761261001992,0.55219701,109910.0,109900.0,0.148685]
[1761261002194,0.51219701,109910.0,109900.0,0.148685]
[1761261004293,0.25219701,109910.0,109900.0,0.148685]
[1761261005491,0.52219701,109910.0,109900.0,0.148685]
[1761261006990,0.53596701,109910.0,109900.0,0.148685]
[1761261007597,0.24219701,109910.0,109900.0,0.29296249]
[1761261008594,0.24219701,109910.0,109900.0,0.148685]
[1761261010996,0.53219701,109910.0,109900.0,0.148685]
[1761261011298,0.25219701,109910.0,109900.0,0.148685]
[1761261011500,0.24219701,109910.0,109900.0,0.148685]
[1761261011698,0.25219701,109910.0,109900.0,0.148685]
[1761261011998,0.52219701,109910.0,109900.0,0.148685]
[1761261012600,0.53596701,109910.0,109900.0,0.148685]
[1761261016207,0.26596701,109910.0,109900.0,0.148685]
[1761261016404,0.26596701,109910.0,109900.0,0.29296249]
[1761261017003,0.25219701,109910.0,109900.0,0.29296249]
[1761261017399,0.21219701,109910.0,109900.0,0.29296249]
[1761261017805,0.02335952,109910.0,109900.0,0.79803998]
[1761261018001,0.001,109910.0,109900.0,0.79803998]
[1761261018207,0.04611741,109920.0,109910.0,0.1486767]
[1761261018407,0.02155,109920.0,109910.0,0.61187419]
[1761261018799,0.02155,109920.0,109910.0,0.97267419]
[1761261019199,0.22488701,109930.0,109920.0,0.1486684]
[1761261019493,0.22488701,109930.0,109920.0,0.29294589]
[1761261019494,0.24119701,109930.0,109920.0,0.29294589]
[1761261019808,0.09691952,109930.0,109920.0,0.79802338]
[1761261020107,0.04456,109930.0,109920.0,0.65374589]
[1761261020502,0.76682253,109940.0,109930.0,0.1486601]
[1761261020702,0.97682253,109940.0,109930.0,0.61185759]
[1761261021501,0.97682253,109940.0,109930.0,0.4675801]
[1761261022204,0.96499253,109940.0,109930.0,0.4675801]
[1761261022404,0.63871952,109940.0,109930.0,0.6188888]
[1761261022609,0.02335952,109940.0,109930.0,0.6188888]
[1761261022908,0.001,109940.0,109930.0,0.6188888]
[1761261023208,0.02255,109940.0,109930.0,0.6188888]
[1761261023708,0.001,109940.0,109930.0,0.6188888]
[1761261024104,0.001,109940.0,109930.0,0.9796888]
[1761261024303,0.04897,109950.0,109940.0,0.1469119]
[1761261024503,0.09897,109950.0,109940.0,0.29118939]
[1761261025714,0.09997,109950.0,109940.0,0.29118939]
[1761261028516,0.04997,109950.0,109940.0,0.29118939]
[1761261028708,0.33997,109950.0,109940.0,0.29118939]
[1761261028909,0.48424749,109950.0,109940.0,0.29118939]
[1761261029216,0.33997,109950.0,109940.0,0.29118939]
[1761261029609,0.48424749,109950.0,109940.0,0.29118939]
[1761261029912,0.33997,109950.0,109940.0,0.29118939]
[1761261032219,0.04997,109950.0,109940.0,0.29118939]
[1761261038728,0.19424749,109950.0,109940.0,0.29118939]
[1761261040527,0.04997,109950.0,109940.0,0.29118939]
[1761261041231,0.04997,109950.0,109940.0,0.43546688]
[1761261042228,0.04897,109950.0,109940.0,0.43646688]
[1761261047930,0.0048,109950.0,109940.0,0.79726688]
[1761261048132,0.62931965,109970.0,109960.0,0.05881]
[1761261048338,0.97931965,109970.0,109960.0,0.61280429]
[1761261048825,0.47424216,109970.0,109960.0,0.4685268]
[1761261049235,0.25424216,109970.0,109960.0,0.6126275]
[1761261049426,0.22148562,109970.0,109960.0,0.6126275]
[1761261049633,0.22148562,109970.0,109960.0,0.4685268]
[1761261049940,0.19691821,109970.0,109960.0,0.6126275]
[1761261050237,0.19791821,109970.0,109960.0,0.6126275]
[1761261051033,0.17587,109970.0,109960.0,0.6126275]
[1761261051235,0.04487,109970.0,109960.0,0.6126275]
[1761261051437,0.04487,109970.0,109960.0,0.6136275]
[1761261051840,0.02186,109970.0,109960.0,0.6136275]
[1761261052540,0.02186,109970.0,109960.0,0.9744275]
[1761261053232,0.06657852,109980.0,109970.0,0.1253785]
[1761261053440,0.31447,109980.0,109970.0,0.1478885]
[1761261053638,0.33657852,109980.0,109970.0,0.1478885]
[1761261053846,0.33657852,109980.0,109970.0,0.2919892]
[1761261054428,0.27,109980.0,109970.0,1.0527892]
[1761261054640,0.04789,109990.0,109980.0,0.1478803]
[1761261054843,0.06789,109990.0,109980.0,0.610941]
[1761261055446,0.06789,109990.0,109980.0,0.61840859]
[1761261056444,0.06889,109990.0,109980.0,0.61840859]
[1761261064053,0.33889,109990.0,109980.0,0.61840859]
[1761261064250,0.35889,109990.0,109980.0,0.61840859]
[1761261065649,0.5163307,109990.0,109980.0,0.05117759]
[1761261065850,0.8771307,109990.0,109980.0,0.37013759]
[1761261066150,0.7550538,109990.0,109980.0,0.37013759]
[1761261067253,0.47505468,109990.0,109980.0,0.37013759]
[1761261067448,0.73505468,109990.0,109980.0,0.37013759]
[1761261071757,0.73505468,109990.0,109980.0,0.05117759]
[1761261072058,0.73505468,109990.0,109980.0,0.37013759]
[1761261072755,0.73505468,109990.0,109980.0,0.05117759]
[1761261072958,0.76505468,109990.0,109980.0,0.46099789]
[1761261075756,0.48505468,109990.0,109980.0,0.47426789]
[1761261075943,0.48505468,109990.0,109980.0,0.15534789]
[1761261076144,0.48505468,109990.0,109980.0,0.47426789]
[1761261080057,0.12425468,109990.0,109980.0,0.47426789]
[1761261080256,0.46303,109990.0,109980.0,0.47426789]
[1761261080461,0.11091468,109990.0,109980.0,0.61836859]
[1761261080756,0.08889,109990.0,109980.0,0.47426789]
[1761261080956,0.08889,109990.0,109980.0,0.61836859]
[1761261083557,0.08889,109990.0,109980.0,0.52746829]
[1761261083957,0.08889,109990.0,109980.0,0.61836859]
[1761261084158,0.08889,109990.0,109980.0,0.47426789]
[1761261084358,0.04889,109990.0,109980.0,0.61836859]
[1761261086258,0.04889,109990.0,109980.0,0.47426789]
[1761261086462,0.42285,109990.0,109980.0,0.38336759]
[1761261086654,0.70487468,109990.0,109980.0,0.37009759]
[1761261087156,0.70487468,109990.0,109980.0,0.37005759]
[1761261087461,0.44487468,109990.0,109980.0,0.37005759]
[1761261087850,0.74487468,109990.0,109980.0,0.37005759]
[1761261088255,0.74487468,109990.0,109980.0,0.05117759]
[1761261088458,0.74487468,109990.0,109980.0,0.37005759]
[1761261089357,0.74487468,109990.0,109980.0,0.37001759]
[1761261089958,0.74487468,109990.0,109980.0,0.05117759]
[1761261090154,0.74487468,109990.0,109980.0,0.37001759]
[1761261094358,0.74487468,109990.0,109980.0,0.41899593]
[1761261095954,0.44487468,109990.0,109980.0,0.41899593]
[1761261096147,0.70487468,109990.0,109980.0,0.41899593]
[1761261098852,0.84897538,109990.0,109980.0,0.39644593]
[1761261099056,0.87347944,109990.0,109980.0,0.3188]
[1761261099364,0.05945,109980.0,109960.0,0.09128834]
[1761261099567,0.9251507,109970.0,109960.0,0.0567205]
[1761261099757,1.28717538,109970.0,109960.0,0.3756405]
[1761261099956,1.28717538,109970.0,109960.0,0.36789834]
[1761261100457,1.68717538,109970.0,109960.0,0.36889834]
[1761261100864,1.68717538,109970.0,109960.0,0.36789834]
[1761261101164,1.68717538,109970.0,109960.0,0.36889834]
[1761261101464,1.68717538,109970.0,109960.0,0.36789834]
[1761261101664,1.68817538,109970.0,109960.0,0.36789834]
[1761261102066,1.71267944,109970.0,109960.0,0.31892]
[1761261104260,1.68817538,109970.0,109960.0,0.31892]
[1761261106363,1.54407468,109970.0,109960.0,0.31892]
[1761261106660,1.68817538,109970.0,109960.0,0.36123]
[1761261110366,0.96657538,109970.0,109960.0,0.36123]
[1761261110561,1.68817538,109970.0,109960.0,0.36123]
[1761261110761,1.68820196,109970.0,109960.0,0.36123]
[1761261114165,1.68820196,109970.0,109960.0,0.34014]
[1761261114670,0.96660196,109970.0,109960.0,0.34014]
[1761261114860,1.68820196,109970.0,109960.0,0.34014]
[1761261115467,1.68820196,109970.0,109960.0,0.31892]
[1761261120675,0.96660196,109970.0,109960.0,0.31892]
[1761261120971,1.68820196,109970.0,109960.0,0.31892]
[1761261121164,1.83232924,109970.0,109960.0,0.31892]
[1761261121365,1.68820196,109970.0,109960.0,0.31892]
[1761261123876,1.68820196,109970.0,109960.0,0.34164]
[1761261124068,1.54407468,109970.0,109960.0,0.36278]
[1761261124273,1.68820196,109970.0,109960.0,0.36278]
[1761261125367,0.94820196,109970.0,109960.0,0.50690728]
[1761261125570,1.29820196,109970.0,109960.0,0.50690728]
[1761261126370,1.29820196,109970.0,109960.0,0.59782408]
[1761261128187,1.32270602,109970.0,109960.0,0.59782408]
[1761261130189,1.32270602,109970.0,109960.0,0.50690728]
[1761261131992,1.32270602,109970.0,109960.0,0.36278]
[1761261139399,0.60110602,109970.0,109960.0,0.36278]
[1761261139594,1.32270602,109970.0,109960.0,0.36278]
[1761261140895,1.32270602,109970.0,109960.0,0.4536969]
[1761261141090,1.32270602,109970.0,109960.0,0.59782418]
[1761261141291,1.32270602,109970.0,109960.0,0.4536969]
[1761261145607,1.32270602,109970.0,109960.0,0.36278]
[1761261146206,1.32270602,109970.0,109960.0,0.4536969]
[1761261146807,1.32270602,109970.0,109960.0,0.36278]
[1761261147107,0.60110602,109970.0,109960.0,0.36278]
[1761261147310,1.32270602,109970.0,109960.0,0.36278]
[1761261147812,1.17857874,109970.0,109960.0,0.4536969]
[1761261148001,1.08270602,109970.0,109960.0,0.4536969]
[1761261148201,1.10537874,109970.0,109960.0,0.61122418]
[1761261148403,1.24950602,109970.0,109960.0,0.61122418]
[1761261149114,1.26289602,109970.0,109960.0,0.61122418]
[1761261149809,1.26289602,109970.0,109960.0,0.4670969]
[1761261150312,1.11776874,109970.0,109960.0,0.61122418]
[1761261150499,1.26189602,109970.0,109960.0,0.61122418]
[1761261150903,1.26189602,109970.0,109960.0,0.4536969]
[1761261151098,1.26189602,109970.0,109960.0,0.59782418]
[1761261151411,0.54029602,109970.0,109960.0,0.59782418]
[1761261151609,0.54029602,109970.0,109960.0,0.4536969]
[1761261151610,0.90109602,109970.0,109960.0,0.4536969]
[1761261151810,0.75696874,109970.0,109960.0,0.4536969]
[1761261152009,0.90109602,109970.0,109960.0,0.4536969]
[1761261153508,0.90109602,109970.0,109960.0,0.59782418]
[1761261158324,0.54029602,109970.0,109960.0,0.59782418]
[1761261158618,0.90109602,109970.0,109960.0,0.4536969]
[1761261159414,0.90109602,109970.0,109960.0,0.59782418]
[1761261160618,0.90109602,109970.0,109960.0,0.4536969]
[1761261162421,0.90109602,109970.0,109960.0,0.59782418]
[1761261162812,0.62109602,109970.0,109960.0,0.59782418]
[1761261163012,0.94109602,109970.0,109960.0,0.59782418]
[1761261165615,0.62109602,109970.0,109960.0,0.61122418]
[1761261166029,0.59659196,109970.0,109960.0,0.66020252]
[1761261168418,0.43907468,109970.0,109960.0,0.66020252]
[1761261168620,0.58320196,109970.0,109960.0,0.66020252]
[1761261168816,0.58320196,109970.0,109960.0,0.66120252]
[1761261169334,0.43907468,109970.0,109960.0,0.66120252]
[1761261169525,0.43907468,109970.0,109960.0,0.8053298]
[1761261169737,0.03202468,109970.0,109960.0,1.2053298]
[1761261169930,0.01,109970.0,109960.0,1.2053298]
[1761261170230,0.42902874,109980.0,109960.0,1.80117398]
[1761261170423,0.0517,109980.0,109970.0,0.34243422]
[1761261170622,0.0517,109980.0,109970.0,0.70323422]
[1761261170823,0.03,109980.0,109970.0,0.70323422]
[1761261171022,0.03,109980.0,109970.0,0.65425588]
[1761261171423,0.03,109980.0,109970.0,1.10321598]
[1761261172737,0.03,109980.0,109970.0,1.10313022]
[1761261173030,0.43081637,109990.0,109980.0,0.1035603]
[1761261173236,0.62081637,109990.0,109980.0,0.4652703]
[1761261174233,0.26001637,109990.0,109980.0,0.4652703]
[1761261174430,0.23795,109990.0,109980.0,0.4652703]
[1761261174838,0.23795,109990.0,109980.0,0.60931182]
[1761261175337,0.23895,109990.0,109980.0,0.60931182]
[1761261181432,0.1958,109990.0,109980.0,1.11415334]
[1761261181634,0.1958,109990.0,109980.0,0.97011182]
[1761261182039,0.1958,109990.0,109980.0,1.01907192]
[1761261182640,0.21725,109990.0,109980.0,1.01907192]
[1761261184142,0.1958,109990.0,109980.0,1.41907192]
[1761261184345,0.21725,109990.0,109980.0,1.41907192]
[1761261184744,0.2387,109990.0,109980.0,1.41907192]
[1761261184944,0.2387,109990.0,109980.0,1.2750304]
[1761261185136,0.2387,109990.0,109980.0,1.41907192]
[1761261187945,0.2377,109990.0,109980.0,1.42007192]
[1761261188145,0.2377,109990.0,109980.0,1.42207192]
[1761261189144,0.2377,109990.0,109980.0,1.2780304]
[1761261189344,0.2377,109990.0,109980.0,1.42207192]
[1761261189744,0.2377,109990.0,109980.0,1.02207192]
[1761261190442,0.2377,109990.0,109980.0,0.66127192]
[1761261190648,0.2377,109990.0,109980.0,1.02107192]
[1761261190949,0.2377,109990.0,109980.0,1.02207192]
[1761261191139,0.1948,109990.0,109980.0,1.02207192]
[1761261191342,0.2377,109990.0,109980.0,1.02207192]
[1761261192149,0.1948,109990.0,109980.0,1.02207192]
[1761261192351,0.2377,109990.0,109980.0,1.02207192]
[1761261198155,0.2377,109990.0,109980.0,0.66127192]
[1761261198356,0.2377,109990.0,109980.0,1.02207192]
[1761261200366,0.2377,109990.0,109980.0,0.97311182]
[1761261201363,0.2377,109990.0,109980.0,1.03857502]
[1761261209668,0.2377,109990.0,109980.0,1.18261654]
[1761261209970,0.2377,109990.0,109980.0,1.03857502]
[1761261211668,0.2377,109990.0,109980.0,0.8945335]
[1761261211970,0.2377,109990.0,109980.0,1.03857502]
[1761261213975,0.1948,109990.0,109980.0,1.03857502]
[1761261214171,0.23896,109990.0,109980.0,1.03857502]
[1761261215876,0.04896,109990.0,109980.0,1.03857502]
[1761261216865,0.04896,109990.0,109980.0,0.8945335]
[1761261217066,0.02603,109990.0,109980.0,1.03857502]
[1761261217779,0.0048,109990.0,109980.0,1.03857502]
[1761261218085,0.46490319,110010.0,110000.0,0.1483639]
[1761261218371,0.77490319,110010.0,110000.0,0.66013464]
[1761261218574,0.37616774,110010.0,110000.0,0.66013464]
[1761261220874,0.38966774,110010.0,110000.0,0.66926688]
[1761261227979,0.36766,110010.0,110000.0,1.03006688]
[1761261228283,0.35416,110010.0,110000.0,1.03006688]
[1761261232687,0.35416,110010.0,110000.0,1.17395668]
[1761261238296,0.35416,110010.0,110000.0,0.81315668]
[1761261238596,0.35416,110010.0,110000.0,1.17395668]
[1761261238992,0.17416,110010.0,110000.0,1.17395668]
[1761261242895,0.17416,110010.0,110000.0,0.81315668]
[1761261243193,0.17416,110010.0,110000.0,1.17395668]
[1761261243394,0.17416,110010.0,110000.0,0.81315668]
[1761261243593,0.17416,110010.0,110000.0,1.17395668]
[1761261247397,0.19613198,110010.0,110000.0,1.17395668]
[1761261247892,0.02934545,110030.0,110020.0,0.1493774]
[1761261248107,0.36464545,110030.0,110020.0,0.75598872]
[1761261248398,0.50603616,110030.0,110020.0,0.61202306]
[1761261249101,0.3630705,110030.0,110020.0,0.61202306]
[1761261250396,0.50703616,110030.0,110020.0,0.61202306]
[1761261252494,0.50703616,110030.0,110020.0,0.75598872]
[1761261252495,0.3410605,110030.0,110020.0,0.75598872]
[1761261252797,0.3630705,110030.0,110020.0,0.75598872]
[1761261254002,0.3630705,110030.0,110020.0,0.61202306]
[1761261254401,0.3630705,110030.0,110020.0,0.75598872]
[1761261259504,0.3630705,110030.0,110020.0,1.11678872]
[1761261260104,0.3630705,110030.0,110020.0,1.16582191]
[1761261260305,0.3630705,110030.0,110020.0,1.11678872]
[1761261261004,0.3630705,110030.0,110020.0,1.16582191]
[1761261261207,0.3411,110030.0,110020.0,1.16582191]
[1761261263001,0.31718,110030.0,110020.0,1.16582191]
[1761261267915,0.2958,110030.0,110020.0,1.16582191]
[1761261268611,0.0958,110030.0,110020.0,1.16582191]
[1761261269320,0.59411637,110050.0,110040.0,0.1510108]
[1761261269513,0.69560526,110050.0,110040.0,0.61361646]
[1761261270313,0.33480526,110050.0,110040.0,0.61361646]
[1761261270627,0.33880526,110050.0,110040.0,0.61361646]
[1761261271119,0.31687,110050.0,110040.0,0.61361646]
[1761261271523,0.46083566,110050.0,110040.0,0.61361646]
[1761261271711,0.31687,110050.0,110040.0,0.61361646]
[1761261271907,0.31687,110050.0,110040.0,0.75758212]
[1761261272111,0.29592669,110050.0,110040.0,0.75758212]
[1761261272309,0.2958,110050.0,110040.0,0.61361646]
[1761261272515,0.31687,110050.0,110040.0,0.61361646]
[1761261273518,0.31687,110050.0,110040.0,0.97441646]
[1761261274222,0.31687,110050.0,110040.0,1.11838212]
[1761261274821,0.2958,110050.0,110040.0,1.11838212]
[1761261275420,0.274,110050.0,110040.0,1.11838212]
[1761261275621,0.274,110050.0,110040.0,1.16741531]
[1761261275918,0.084,110050.0,110040.0,1.16741531]
[1761261278319,0.004,110050.0,110040.0,1.16741531]
[1761261278519,0.004,110050.0,110040.0,1.11838212]
[1761261279225,0.003,110050.0,110040.0,1.16724695]
[1761261279427,0.19163566,110070.0,110060.0,0.1370243]
[1761261279620,0.49163566,110070.0,110060.0,0.4556643]
[1761261280126,0.49163566,110070.0,110060.0,0.59962996]
[1761261280535,0.49363566,110070.0,110060.0,0.61359996]
[1761261280825,0.49463566,110070.0,110060.0,0.61359996]
[1761261281123,0.49463566,110070.0,110060.0,0.4696343]
[1761261281525,0.86880566,110070.0,110060.0,0.36483]
[1761261281727,0.86880566,110070.0,110060.0,0.3788]
[1761261282117,0.71147,110070.0,110060.0,0.4696343]
[1761261282320,0.49463566,110070.0,110060.0,0.4696343]
[1761261283322,0.49263566,110070.0,110060.0,0.4696343]
[1761261283722,0.49163566,110070.0,110060.0,0.4696343]
[1761261283919,0.49163566,110070.0,110060.0,0.4716343]
[1761261284630,0.34767,110070.0,110060.0,0.62414747]
[1761261284829,0.49163566,110070.0,110060.0,0.62414747]
[1761261285424,0.49163566,110070.0,110060.0,0.48018181]
[1761261285632,0.49163566,110070.0,110060.0,0.62414747]
[1761261286629,0.49163566,110070.0,110060.0,0.48018181]
[1761261286831,0.34767,110070.0,110060.0,0.48018181]
[1761261287025,0.49163566,110070.0,110060.0,0.48018181]
[1761261287427,0.49163566,110070.0,110060.0,0.62414747]
[1761261288136,0.49163566,110070.0,110060.0,0.48018181]
[1761261289232,0.34767,110070.0,110060.0,0.48018181]
[1761261289430,0.49163566,110070.0,110060.0,0.48018181]
[1761261290931,0.50500566,110070.0,110060.0,0.48018181]
[1761261291435,0.86580566,110070.0,110060.0,0.37537751]
[1761261291630,0.72184,110070.0,110060.0,0.37537751]
[1761261291835,0.86580566,110070.0,110060.0,0.37537751]
[1761261292041,0.86580566,110070.0,110060.0,0.46621181]
[1761261292739,0.86580566,110070.0,110060.0,0.46421181]
[1761261292942,0.88767808,110070.0,110060.0,0.46521181]
[1761261294837,0.74371242,110070.0,110060.0,0.46521181]
[1761261295141,0.88757887,110070.0,110060.0,0.46521181]
[1761261298342,0.88757887,110070.0,110060.0,0.47921181]
[1761261304348,0.91212432,110070.0,110060.0,0.47921181]
[1761261304543,0.88757887,110070.0,110060.0,0.47921181]
[1761261304744,1.45599077,110070.0,110060.0,0.001]
[1761261305045,1.45599077,110070.0,110060.0,0.31956]
[1761261305644,1.48874731,110070.0,110060.0,0.31956]
[1761261306847,1.51333662,110070.0,110060.0,0.31956]
[1761261307642,1.51333662,110070.0,110060.0,0.31856]
[1761261308441,1.46420186,110070.0,110060.0,0.31856]
[1761261308641,1.51333662,110070.0,110060.0,0.31856]
[1761261308950,1.51433662,110070.0,110060.0,0.31856]
[1761261309351,1.46520186,110070.0,110060.0,0.31856]
[1761261309850,1.06520186,110070.0,110060.0,0.31856]
[1761261310251,1.06520186,110070.0,110060.0,0.4093943]
[1761261310549,1.08869662,110070.0,110060.0,0.31856]
[1761261310949,1.08869662,110070.0,110060.0,0.4531843]
[1761261311143,1.05594008,110070.0,110060.0,0.4531843]
[1761261314252,1.41674008,110070.0,110060.0,0.4531843]
[1761261317754,0.69514008,110070.0,110060.0,0.4531843]
[1761261317956,1.05594008,110070.0,110060.0,0.4531843]
[1761261318451,0.75483718,110070.0,110060.0,0.4671843]
[1761261318651,0.89870363,110070.0,110060.0,0.4671843]
[1761261318955,0.87420887,110070.0,110060.0,0.4671843]
[1761261321048,0.87431351,110070.0,110060.0,0.4671843]
[1761261329061,0.51351351,110070.0,110060.0,0.4671843]
[1761261329663,0.36964706,110070.0,110060.0,0.4671843]
[1761261329865,0.51351351,110070.0,110060.0,0.4671843]
[1761261332167,0.36964706,110070.0,110060.0,0.4671843]
[1761261332466,0.51351351,110070.0,110060.0,0.4671843]
[1761261333154,0.38247706,110070.0,110060.0,0.4531843]
[1761261333359,0.52634351,110070.0,110060.0,0.4662643]
[1761261334766,0.88714351,110070.0,110060.0,0.37543]
[1761261334968,0.88714351,110070.0,110060.0,0.04379]
[1761261335164,0.88714351,110070.0,110060.0,0.36239]
[1761261335667,0.91162906,110070.0,110060.0,0.36239]
[1761261336562,0.91162906,110070.0,110060.0,0.4532243]
[1761261340971,1.05549551,110070.0,110060.0,0.4532243]
[1761261341472,0.91162906,110070.0,110060.0,0.4532243]
[1761261342068,1.05549551,110070.0,110060.0,0.4532243]
[1761261345274,0.91162906,110070.0,110060.0,0.4532243]
[1761261345573,1.05549551,110070.0,110060.0,0.4532243]
[1761261346175,0.91162906,110070.0,110060.0,0.4532243]
[1761261347173,1.05549551,110070.0,110060.0,0.4532243]
[1761261347773,0.69469551,110070.0,110060.0,0.4532243]
[1761261347972,1.05549551,110070.0,110060.0,0.4532243]
[1761261348674,0.91162906,110070.0,110060.0,0.4532243]
[1761261350075,0.91162906,110070.0,110060.0,0.4532242]
[1761261350875,0.91162906,110070.0,110060.0,0.4663042]
[1761261351967,0.91162906,110070.0,110060.0,0.4532242]
[1761261353278,1.05549551,110070.0,110060.0,0.4532242]
[1761261353580,0.91162906,110070.0,110060.0,0.4532242]
[1761261355178,0.55082906,110070.0,110060.0,0.4532242]
[1761261355482,0.91162906,110070.0,110060.0,0.4532242]
[1761261356684,1.05552519,110070.0,110060.0,0.4532242]
[1761261357386,0.9116439,110070.0,110060.0,0.4660142]
[1761261357580,0.8988139,110070.0,110060.0,0.4660142]
[1761261365795,0.75493261,110070.0,110060.0,0.4660142]
[1761261366093,0.8988139,110070.0,110060.0,0.4660142]
[1761261369198,0.9121239,110070.0,110060.0,0.4660142]
[1761261369396,1.05600519,110070.0,110060.0,0.4532242]
[1761261369595,0.9121239,110070.0,110060.0,0.4532242]
[1761261369896,1.05600519,110070.0,110060.0,0.4532242]
[1761261370087,0.13848872,110070.0,110060.0,0.80264161]
[1761261370292,0.26039295,110070.0,110060.0,0.65876032]
[1761261370493,0.48798129,110070.0,110060.0,0.65876032]
[1761261370691,0.51002136,110070.0,110060.0,0.51487903]
[1761261372199,0.51002136,110070.0,110060.0,0.65876032]
[1761261373501,0.51002136,110070.0,110060.0,0.51487903]
[1761261373701,0.51002136,110070.0,110060.0,0.65876032]
[1761261374798,0.46592136,110070.0,110060.0,0.65876032]
[1761261376801,0.46592136,110070.0,110060.0,0.66176032]
[1761261378296,0.48803136,110070.0,110060.0,0.66176032]
[1761261379302,0.34415007,110070.0,110060.0,1.02256032]
[1761261379497,0.48803136,110070.0,110060.0,1.02256032]
[1761261379803,0.34415007,110070.0,110060.0,1.02256032]
[1761261380205,0.48803136,110070.0,110060.0,1.02256032]
[1761261382094,0.34415007,110070.0,110060.0,1.02256032]
[1761261382998,0.32204007,110070.0,110060.0,1.56644161]
[1761261383303,0.07204007,110070.0,110060.0,1.56644161]
[1761261383602,0.05,110070.0,110060.0,1.56644161]
[1761261385399,0.05,110070.0,110060.0,1.20564161]
[1761261385598,0.05,110070.0,110060.0,1.56644161]
[1761261386008,0.05,110070.0,110060.0,1.27867903]
[1761261386307,0.05,110070.0,110060.0,1.56644161]
[1761261389413,0.05,110070.0,110060.0,2.0711229]
[1761261389704,0.59727587,110100.0,110090.0,0.05661]
[1761261389911,0.88727587,110100.0,110090.0,0.4659794]
[1761261390099,1.03115716,110100.0,110090.0,0.4659794]
[1761261390404,0.88727587,110100.0,110090.0,0.60986069]
[1761261390797,1.00666265,110100.0,110090.0,0.4659794]
[1761261391109,0.86278136,110100.0,110090.0,0.4659794]
[1761261391907,0.71990007,110100.0,110090.0,0.60986069]
[1761261392097,0.86378136,110100.0,110090.0,0.60986069]
[1761261392301,0.86378136,110100.0,110090.0,0.4659794]
[1761261394207,0.86378136,110100.0,110090.0,0.60986069]
[1761261394406,0.86378136,110100.0,110090.0,0.4659794]
[1761261394707,0.86378136,110100.0,110090.0,0.47446003]
[1761261395502,0.86378136,110100.0,110090.0,0.38365063]
[1761261395702,1.00766265,110100.0,110090.0,0.47446003]
[1761261397511,0.86378136,110100.0,110090.0,0.47446003]
[1761261399116,0.50298136,110100.0,110090.0,0.47446003]
[1761261399415,0.86378136,110100.0,110090.0,0.47446003]
[1761261401721,1.00766265,110100.0,110090.0,0.38365063]
[1761261402018,1.00766265,110100.0,110090.0,0.47446003]
[1761261404115,1.16472394,110100.0,110090.0,0.02206]
[1761261404415,0.05924,110090.0,110080.0,0.34027]
[1761261404722,0.05924,110070.0,110060.0,0.04365]
[1761261404922,1.36860258,110070.0,110060.0,0.36237]
[1761261405115,1.39064265,110070.0,110060.0,0.36237]
[1761261405717,1.24676136,110070.0,110060.0,0.36237]
[1761261406021,1.24676136,110070.0,110060.0,0.36537]
[1761261406407,0.94676136,110070.0,110060.0,0.4562042]
[1761261406612,1.26154129,110070.0,110060.0,0.61304549]
[1761261406818,1.26154129,110070.0,110060.0,0.4691642]
[1761261407514,1.26154129,110070.0,110060.0,0.4681642]
[1761261409721,1.26154129,110070.0,110060.0,0.05861]
[1761261410020,1.41860258,110070.0,110060.0,0.34239]
[1761261410220,1.44064847,110070.0,110060.0,0.34239]
[1761261410423,1.44064847,110070.0,110060.0,0.02359]
[1761261410615,1.29676718,110070.0,110060.0,0.34239]
[1761261410924,1.44064847,110070.0,110060.0,0.34239]
[1761261411109,1.29676718,110070.0,110060.0,0.34239]
[1761261411513,1.29676718,110070.0,110060.0,0.36245]
[1761261411722,1.29676718,110070.0,110060.0,0.36345]
[1761261411922,1.29676718,110070.0,110060.0,0.4542842]
[1761261412116,1.28358718,110070.0,110060.0,0.4672442]
[1761261413423,1.26154129,110070.0,110060.0,0.37641]
[1761261414024,1.26154129,110070.0,110060.0,0.37741]
[1761261416732,1.26151916,110070.0,110060.0,0.37741]
[1761261419026,1.27528916,110070.0,110060.0,0.37741]
[1761261419623,1.29731646,110070.0,110060.0,0.36445]
[1761261419927,1.29731646,110070.0,110060.0,0.34239]
[1761261421026,1.29731646,110070.0,110060.0,0.34139]
[1761261421430,1.44117562,110070.0,110060.0,0.3198]
[1761261421614,1.44117562,110070.0,110060.0,0.001]
[1761261421814,1.44117562,110070.0,110060.0,0.31976]
[1761261428132,1.46567013,110070.0,110060.0,0.31976]
[1761261429531,1.46567013,110070.0,110060.0,0.342]
[1761261430133,1.46567013,110070.0,110060.0,0.31976]
[1761261430341,1.46567013,110070.0,110060.0,0.342]